[Event "Italian-ch Semifinal 2022"]
[Site "Acqui Terme"]
[Date "2022.06.19"]
[Round "9.5"]
[White "Boraso, Alessio"]
[Black "Cina`, Vittorio"]
[Result "1-0"]
[ECO "C02"]
[WhiteElo "2287"]
[BlackElo "2027"]
[Annotator "TA"]
[PlyCount "43"]
[EventDate "2022.06.15"]
[EventType "swiss"]
[EventCountry "ITA"]
[SourceTitle "playchess.com"]
[Source "ChessBase"]
[SourceQuality "1"]
[TimeControl "40/5400+30:1800+30"]

{[%evp 16,43,-22,-27,-11,-8,-12,-3,0,0,0,0,51,19,34,53,83,-85,-90,-109,0,0,0,0,35,28,116,-13,29996,29997]} 1. e4 {[%emt 1:31:00]} e6 {[%emt 1:31:00]} 2. d4 {[%emt 0:00:00]} d5 {[%emt 0:00:00]} 3. e5 {[%emt 0:00:00]} c5 {[%emt 0:00:00]} 4. c3 {[%emt 0:00:00]} Qb6 {[%emt 0:00:00]} 5. Nf3 {[%emt 0:00:00]} Nc6 {[%emt 0:00:00]} 6. Bd3 {[%emt 0:00:00]} cxd4 {[%emt 0:00:00]} 7. cxd4 {[%emt 0:00:00]} Bd7 {[%emt 0:00:00]} 8. O-O {[%emt 0:00:00]} Nxd4 {[%emt 0:00:00]} 9. Nbd2 {[%emt 0:00:00][%cal Bb1d2,Bd2b3,Bb3c5,Bc5b7,Bb7d6][%mdl 32] now supersedes 9.Nxd4.} Nc6 {[%emt 0:00:00] C02: French: Advance Variation.} 10. Nb3 {[%emt 0:00:00]} Nge7 {[%emt 0:00:00]} 11. Be3 {[%emt 0:00:00]} Qc7 {[%emt 0:00:00] The position is equal.} 12. Rc1 {[%emt 0:00:00]} Ng6 {[%emt 0:00:00]} 13. Nc5 {[%emt 0:00:00]} Ngxe5 {[%emt 0:00:00]} (13... Be7 $11) 14. Nxe5 $14 {[%emt 0:00:00]} Qxe5 {[%emt 0:00:00]} (14... Nxe5 $2 15. Nxe6 $1 {[%mdl 512]} Qxc1 16. Nxg7+ (16. Bxc1 fxe6 17. Qh5+ Nf7 $18) 16... Bxg7 17. Bxc1 $18 (17. Qxc1 Nxd3 18. Qc7 Bf5 $15)) 15. Nxb7 {[%emt 0:00:00]} d4 {[%emt 0:00:00][%cal Bd5d4,Bd4e3][%mdl 32] [#]} 16. Qf3 $146 {[%emt 0:00:00] 0x0.00222941fe58dp-1022s more active pieces. The black rooks are badly placed.} (16. Bd2 $16 {is forced if you want to stay better.}) ({Predecessor:} 16. Bd2 Rb8 17. Re1 Qc7 18. Na5 Qb6 19. Nxc6 Bxc6 20. Qh5 Bd7 21. Ba5 Qd6 22. Bc7 {1-0 (48) Leon Hoyos,M (2535)-Meier,G (2558) Merida 2008}) 16... dxe3 $17 {[%emt 0:00:00]} 17. Rxc6 {[%emt 0:00:00][%cal Of2e3]} Be7 {[%emt 0:00:00]} (17... Bxc6 $2 18. Qxc6+ Ke7 19. Nc5 $18 (19. f4 Qd5 $19)) (17... Rb8 $17 18. Rc2 Be7) 18. Nd6+ $11 {[%emt 0:00:00]} Bxd6 {[%emt 0:00:00]} 19. Rxd6 $40 {[%emt 0:00:00][%mdl 128] White mounts an attack.} Rd8 {[%emt 0:00:00]} 20. fxe3 {[%emt 0:00:00][%csl Gf1][%cal Rf3f7]} O-O {[%emt 0:00:00] [#]} (20... f5 $11 21. Qf4 Qxf4 22. exf4 (22. Rxf4 Ke7 $14) 22... Bc8) 21. Rd4 {[%emt 0:00:00]} (21. Rd1 $1 $16) 21... Bc6 {[%emt 0:00:00][%mdl 8192] [#] Against Qe4} 22. Qxf7+ $3 {[%emt 0:00:00][%mdl 512] Weighted Error Value: White=0.39/Black=0.82} 1-0

[Event "Italian-ch Semifinal 2022"]
[Site "Acqui Terme"]
[Date "2022.06.19"]
[Round "9.6"]
[White "Hercegovac, Neven"]
[Black "Pisacane, Pietro"]
[Result "1/2-1/2"]
[ECO "C04"]
[WhiteElo "2155"]
[BlackElo "2138"]
[Annotator "NA RC"]
[PlyCount "131"]
[EventDate "2022.06.15"]
[EventType "swiss"]
[EventCountry "ITA"]
[SourceTitle "playchess.com"]
[Source "ChessBase"]
[SourceQuality "1"]
[TimeControl "40/5400+30:1800+30"]

1. e4 {[%emt 0:00:03]} e6 {[%emt 0:07:31]} 2. d4 {[%emt 0:00:13]} d5 {[%emt 0:00:04]} 3. Nd2 {[%emt 0:00:06]} Nc6 {[%emt 0:02:47]} 4. Ngf3 {[%emt 0:00:07]} Nf6 {[%emt 0:00:09]} 5. e5 {[%emt 0:00:05]} Nd7 {[%emt 0:00:04]} 6. Be2 {[%emt 0:00:12]} f6 {[%emt 0:01:47]} 7. exf6 {[%emt 0:00:17]} Qxf6 {[%emt 0:01:15]} 8. Nf1 {[%emt 0:00:28]} Bd6 {[%emt 0:08:41]} 9. Ne3 {[%emt 0:00:24]} O-O {[%emt 0:05:41]} 10. O-O {[%emt 0:00:14]} h6 {[%emt 0:12:42]} 11. c4 {[%emt 0:05:23]} dxc4 {[%emt 0:03:04]} 12. Nxc4 {[%emt 0:11:19]} Bf4 {[%emt 0:08:34]} 13. b3 {[%emt 0:17:43]} Nb6 {[%emt 0:06:44]} 14. Bb2 {[%emt 0:06:43]} Rd8 {[%emt 0:13:29]} 15. g3 {[%emt 0:09:08]} Nxc4 {[%emt 0:02:09]} 16. Bxc4 {[%emt 0:00:45]} Bd6 {[%emt 0:01:13]} 17. Qe2 {[%emt 0:01:06]} Qf5 {[%emt 0:06:24]} 18. Rfe1 {[%emt 0:02:24]} Be7 {[%emt 0:02:15]} 19. Bd3 {[%emt 0:11:10]} Qg4 {[%emt 0:03:08]} 20. a3 {[%emt 0:08:08]} Bf6 {[%emt 0:03:50]} 21. Rad1 {[%emt 0:00:25]} Bd7 {[%emt 0:02:02]} 22. Bc4 {[%emt 0:03:51]} Ne7 {[%emt 0:01:23]} 23. Bxe6+ {[%emt 0:04:20]} Bxe6 {[%emt 0:00:28]} 24. Qxe6+ {[%emt 0:00:02]} Qxe6 {[%emt 0:00:15]} 25. Rxe6 {[%emt 0:00:03]} c5 {[%emt 0:04:19]} 26. Re2 {[%emt 0:03:14]} Rd7 {[%emt 0:02:46]} 27. Rde1 {[%emt 0:05:14]} cxd4 {[%emt 0:00:07]} 28. Nxd4 {[%emt 0:02:30]} Bxd4 {[%emt 0:00:57]} 29. Bxd4 {[%emt 0:00:07]} Nc6 {[%emt 0:00:32]} 30. Bb2 {[%emt 0:01:36]} Rf8 {[%emt 0:00:35]} 31. b4 {[%emt 0:00:27]} Nd4 {[%emt 0:00:25]} 32. Bxd4 {[%emt 0:00:51]} Rxd4 {[%emt 0:00:01]} 33. Re7 {[%emt 0:00:36]} Rf7 {[%emt 0:00:17]} 34. Kg2 {[%emt 0:01:58]} Rd2 {[%emt 0:01:17]} 35. R1e2 {[%emt 0:00:43]} Rxe2 {[%emt 0:00:32]} 36. Rxe2 {[%emt 0:00:07]} Rc7 {[%emt 0:00:09]} 37. Kf3 {[%emt 0:00:13]} Kf7 {[%emt 0:00:45]} 38. h4 {[%emt 0:00:08]} Rc3+ {[%emt 0:00:35]} 39. Re3 {[%emt 0:00:02]} Rc4 {[%emt 0:00:21]} 40. h5 {[%emt 0:00:00]} Rc2 {[%emt 0:00:00]} 41. g4 {[%emt 0:00:42]} Kf6 {[%emt 0:09:10]} 42. Kg3 {[%emt 0:03:09]} b5 {[%emt 0:10:47]} 43. f3 {[%emt 0:00:41]} Rc4 {[%emt 0:01:31]} 44. Rd3 {[%emt 0:00:42]} Ke6 {[%emt 0:02:11] [#]} 45. Rd8 $16 {[%emt 0:03:12]} a5 {[%emt 0:04:11]} 46. bxa5 {[%emt 0:01:41]} Ra4 {[%emt 0:00:01]} 47. Ra8 {[%emt 0:00:51]} Rxa3 {[%emt 0:00:41]} 48. a6 {[%emt 0:00:52]} b4 {[%emt 0:02:10]} 49. a7 {[%emt 0:00:06]} Kf7 {[%emt 0:00:32]} 50. g5 {[%emt 0:02:25]} hxg5 {[%emt 0:01:59]} 51. Kg4 {[%emt 0:00:53]} Ra5 {[%emt 0:02:26]} 52. Rb8 {[%emt 0:00:58]} Rxa7 {[%emt 0:00:07]} 53. Kxg5 {[%emt 0:00:16]} Ra3 {[%emt 0:00:55]} 54. Kg4 {[%emt 0:01:02]} Rb3 {[%emt 0:00:41]} 55. f4 {[%emt 0:01:07]} Rb1 {[%emt 0:00:37]} 56. Kf5 {[%emt 0:00:17]} Rh1 {[%emt 0:00:32]} 57. Rb7+ {[%emt 0:00:06]} Kg8 {[%emt 0:00:12]} 58. Kg6 {[%emt 0:00:18]} Rg1+ {[%emt 0:00:05]} 59. Kf5 {[%emt 0:00:04]} Rh1 {[%emt 0:00:10]} 60. Rxb4 {[%emt 0:00:32]} Rxh5+ {[%emt 0:00:20]} 61. Kg6 {[%emt 0:00:19]} Rh6+ {[%emt 0:00:06]} 62. Kg5 {[%emt 0:00:09]} Ra6 {[%emt 0:00:56]} 63. Rb8+ {[%emt 0:00:33]} Kf7 {[%emt 0:00:36]} 64. Rb7+ {[%emt 0:00:17]} Kg8 {[%emt 0:00:08]} 65. Rb8+ {[%emt 0:00:02]} Kf7 {[%emt 0:00:05]} 66. Rb7+ {[%emt 0:29:51]} 1/2-1/2

[Event "Italian-ch Semifinal 2022"]
[Site "Acqui Terme"]
[Date "2022.06.19"]
[Round "9.7"]
[White "Tripodi, Enzo"]
[Black "Cocchi, Andrea"]
[Result "0-1"]
[ECO "B12"]
[WhiteElo "2170"]
[BlackElo "2205"]
[Annotator "TA"]
[PlyCount "87"]
[EventDate "2022.06.15"]
[EventType "swiss"]
[EventCountry "ITA"]
[SourceTitle "playchess.com"]
[Source "ChessBase"]
[SourceQuality "1"]
[TimeControl "40/5400+30:1800+30"]

{[%evp 9,87,0,34,32,28,36,39,31,32,27,62,39,46,44,42,44,40,41,77,48,64,42,36,-14,-6,-15,-36,-22,-20,-137,-142,-143,-146,-208,-206,-536,-535,-918,-897,-1161,-1155,-1123,-1129,-1002,-838,-777,0,-700,-520,-895,-879,-1040,-947,-1184,-647,-640,-639,-639,-624,-639,-635,-756,-739,-756,-749,-604,-532,-1415,-1387,-5089,-1999,-29977,-29977,-29976,-29977,-29976,-29976,-29982,-29983,-29984]} 1. e4 {[%emt 0:08:43]} c6 {[%emt 0:02:38]} 2. d4 {[%emt 0:00:12]} d5 {[%emt 0:00:11]} 3. e5 {[%emt 0:00:04]} c5 {[%emt 0:00:10]} 4. dxc5 {[%emt 0:00:04]} e6 {[%emt 0:00:14]} 5. a3 {[%emt 0:00:03]} Nc6 {[%emt 0:03:00]} 6. Nf3 {[%emt 0:01:14] B12: Caro-Kann: Advance Variation.} Bxc5 {[%emt 0:00:08]} 7. b4 {[%emt 0:00:08]} Be7 {[%emt 0:05:44]} 8. Bd3 {[%emt 0:05:20] White is slightly better.} f6 {[%emt 0:04:43]} 9. Bb2 {[%emt 0:03:04]} fxe5 {[%emt 0:13:34] aiming for ...Bf6.} 10. Nxe5 {[%emt 0:00:16] Strongly threatening Qh5+.} (10. b5 $5 {[%cal Rb5c6]} Nb8 11. Nxe5 $14) 10... Nf6 {[%emt 0:02:49] Inhibits Qh5+.} 11. O-O {[%emt 0:01:41]} O-O {[%emt 0:02:58]} 12. Nd2 {[%emt 0:03:01]} Nxe5 {[%emt 0:00:55]} 13. Bxe5 {[%emt 0:00:07] [#]} Bd7 $146 {[%emt 0:00:36]} ({Predecessor:} 13... a5 14. Rb1 axb4 15. axb4 Bd6 16. Nf3 Qc7 17. Qe2 Bd7 18. c4 Rae8 19. Rbc1 dxc4 20. Bxc4 {½-½ (94) Grischuk,A (2764)-Abdrlauf,E (2343) Chess.com INT 2022}) 14. c4 {[%emt 0:04:15]} a5 {[%emt 0:02:19]} 15. cxd5 {[%emt 0:10:49]} (15. Rb1 $5 {[%cal Rc4d5]}) 15... exd5 {[%emt 0:01:49]} 16. Bxf6 {[%emt 0:04:35]} (16. Qb3 $14) 16... Bxf6 $11 {[%emt 0:17:51]} 17. Qh5 {[%emt 0:00:19]} g6 {[%emt 0:00:03]} 18. Qxd5+ {[%emt 0:01:42]} Kh8 {[%emt 0:04:54]} 19. Ne4 {[%emt 0:24:46] Black keeps a firm grip on the game.} Bxa1 $17 {[%emt 0:05:04]} 20. Rxa1 {[%emt 0:00:13]} Qe7 {[%emt 0:00:10] Against Qe5+} 21. Nc5 {[%emt 0:06:38]} (21. Re1 $17 {was called for.}) 21... Qf6 $19 {[%emt 0:02:26]} 22. Qa2 {[%emt 0:02:33]} (22. Rf1 {nothing else works.} Bc6 23. Qb3) 22... Bc6 {[%emt 0:01:28]} 23. b5 {[%emt 0:04:51] [#]} Bd5 {[%emt 0:00:26][%mdl 512]} 24. Qxd5 {[%emt 0:02:03]} (24. Ne4 Qd4) 24... Qxa1+ {[%emt 0:00:15]} 25. Bf1 {[%emt 0:00:03]} Rad8 {[%emt 0:02:48]} 26. Qc4 {[%emt 0:00:22]} Qe1 {[%emt 0:05:06]} 27. Ne4 {[%emt 0:03:10]} Qa1 $2 {[%emt 0:05:41]} (27... Rf4 $19 28. Qc3+ Qxc3 29. Nxc3 Rc8) 28. Ng5 {[%emt 0:04:44][%mdl 8192]} (28. Nc5 $11 Rc8 29. g3) 28... Qf6 {[%emt 0:00:40]} 29. Qh4 {[%emt 0:02:13]} (29. Nf3 $142) 29... h5 {[%emt 0:02:01] White must now prevent ...Rd4.} 30. Qg3 {[%emt 0:01:01]} Rd1 {[%emt 0:02:56] ( -> ...Qa1)} 31. Qe3 {[%emt 0:02:43]} Qd4 {[%emt 0:04:23]} 32. Qxd4+ {[%emt 0:02:56]} Rxd4 {[%emt 0:00:02]} 33. Ne6 {[%emt 0:00:02] [#]} Rfd8 {[%emt 0:01:28]} 34. Nxd8 {[%emt 0:00:05]} Rxd8 {[%emt 0:00:04][%mdl 4096] Endgame KR-KB} 35. Be2 {[%emt 0:01:58]} Rd2 {[%emt 0:00:35]} 36. Kf1 {[%emt 0:00:37]} Ra2 {[%emt 0:00:23] ...Ra1+ is the strong threat.} 37. Bd3 {[%emt 0:00:16]} Kg7 {[%emt 0:00:35]} 38. b6 {[%emt 0:00:09]} Rxa3 {[%emt 0:00:33]} 39. Be4 {[%emt 0:00:05]} Rb3 {[%emt 0:00:11]} (39... a4 $142 40. Bxb7 Rb3) 40. Bxb7 {[%emt 0:00:00]} a4 {[%emt 0:00:00][%cal Ba5a4,Ba4a3][%mdl 32] Black mates.} 41. Bd5 {[%emt 0:00:23]} Rxb6 {[%emt 0:00:50]} 42. Ke2 {[%emt 0:00:25]} a3 {[%emt 0:00:14]} 43. Kd3 {[%emt 0:00:09]} Rd6 {[%emt 0:00:14]} 44. Kd4 {[%emt 0:34:28] Weighted Error Value: White=1.01/Black=0.30} 0-1

[Event "Italian-ch Semifinal 2022"]
[Site "Acqui Terme"]
[Date "2022.06.19"]
[Round "9.8"]
[White "Caprino, Marco"]
[Black "Martinelli, Valeria"]
[Result "0-1"]
[ECO "A11"]
[WhiteElo "2071"]
[BlackElo "1908"]
[Annotator "NA RC"]
[PlyCount "158"]
[EventDate "2022.06.15"]
[EventType "swiss"]
[EventCountry "ITA"]
[SourceTitle "playchess.com"]
[Source "ChessBase"]
[SourceQuality "1"]
[TimeControl "40/5400+30:1800+30"]

1. g3 {[%emt 0:00:04]} d5 {[%emt 0:00:07]} 2. Bg2 {[%emt 0:00:05]} Nf6 {[%emt 0:00:11]} 3. c4 {[%emt 0:00:29]} c6 {[%emt 0:00:11]} 4. Qc2 {[%emt 0:00:19]} g6 {[%emt 0:00:12]} 5. Nf3 {[%emt 0:00:15]} Bg7 {[%emt 0:00:20]} 6. O-O {[%emt 0:00:14]} O-O {[%emt 0:00:10]} 7. d3 {[%emt 0:00:21]} Nbd7 {[%emt 0:03:42]} 8. Nbd2 {[%emt 0:00:53]} b6 {[%emt 0:04:09]} 9. e4 {[%emt 0:07:09]} dxe4 {[%emt 0:11:10]} 10. Nxe4 {[%emt 0:01:03]} Nxe4 {[%emt 0:01:29]} 11. dxe4 {[%emt 0:00:06]} Bb7 {[%emt 0:01:50]} 12. Rd1 {[%emt 0:00:23]} Qc7 {[%emt 0:01:32]} 13. Bf4 {[%emt 0:01:16]} e5 {[%emt 0:00:07]} 14. Bg5 {[%emt 0:00:09]} Nc5 {[%emt 0:02:53]} 15. Bh3 {[%emt 0:05:34]} Bc8 {[%emt 0:03:47]} 16. Bg2 {[%emt 0:00:55]} Bg4 {[%emt 0:01:48]} 17. Be3 {[%emt 0:06:06]} Ne6 {[%emt 0:00:27]} 18. c5 {[%emt 0:01:06]} Bxf3 {[%emt 0:01:10]} 19. Bxf3 {[%emt 0:00:05]} Rfd8 {[%emt 0:01:16]} 20. b4 {[%emt 0:03:08]} Bf8 {[%emt 0:09:05]} 21. Qc3 {[%emt 0:03:19]} Nd4 {[%emt 0:09:48]} 22. Bxd4 {[%emt 0:01:00]} Rxd4 {[%emt 0:00:20]} 23. Rac1 {[%emt 0:06:21]} bxc5 {[%emt 0:46:16]} 24. bxc5 {[%emt 0:00:40]} Rad8 {[%emt 0:00:00]} 25. h4 {[%emt 0:01:03]} Bh6 {[%emt 0:00:00]} 26. Rb1 {[%emt 0:00:54]} Bd2 {[%emt 0:00:00]} 27. Qc2 {[%emt 0:01:15]} Qa5 {[%emt 0:00:00]} 28. Rb7 {[%emt 0:01:47]} Qc3 {[%emt 0:00:00]} 29. Qxc3 {[%emt 0:00:54]} Bxc3 {[%emt 0:00:00]} 30. Rc1 {[%emt 0:00:21]} Bd2 {[%emt 0:00:00]} 31. Rc2 {[%emt 0:00:15]} R4d7 {[%emt 0:00:00]} 32. Rb1 {[%emt 0:03:52]} Ba5 {[%emt 0:00:00]} 33. h5 {[%emt 0:05:50]} Kg7 {[%emt 0:00:00]} 34. Bg4 {[%emt 0:03:35]} Rc7 {[%emt 0:00:00]} 35. Rb3 {[%emt 0:01:22]} Rd2 {[%emt 0:00:00]} 36. Rbb2 {[%emt 0:03:01]} Rxc2 {[%emt 0:00:00]} 37. Rxc2 {[%emt 0:00:06]} Rb7 {[%emt 0:00:00]} 38. Be2 {[%emt 0:05:02]} Bd8 {[%emt 0:00:00]} 39. hxg6 {[%emt 0:03:07]} hxg6 {[%emt 0:00:00]} 40. Kg2 {[%emt 0:00:00]} Be7 {[%emt 0:00:00]} 41. f4 {[%emt 0:02:26]} f6 {[%emt 0:00:00]} 42. Kf3 {[%emt 0:01:57]} Rd7 {[%emt 0:04:07]} 43. Ba6 {[%emt 0:01:48]} exf4 {[%emt 0:01:12]} 44. Kxf4 {[%emt 0:06:28]} Bd8 {[%emt 0:01:26]} 45. Rc3 {[%emt 0:03:44]} Bc7+ {[%emt 0:00:44]} 46. Kf3 {[%emt 0:00:15]} Be5 {[%emt 0:00:28]} 47. Rb3 {[%emt 0:01:37]} Kf7 {[%emt 0:01:20]} 48. Rb1 {[%emt 0:03:53]} Ke7 {[%emt 0:02:42]} 49. Rh1 {[%emt 0:02:41]} Rd2 {[%emt 0:05:40]} 50. Rh7+ {[%emt 0:00:24]} Kd8 {[%emt 0:00:07]} 51. Bc4 {[%emt 0:06:46]} Rc2 {[%emt 0:00:28]} 52. Bb3 {[%emt 0:00:18]} Rxc5 {[%emt 0:01:28]} 53. Rxa7 {[%emt 0:00:10]} Rc3+ {[%emt 0:00:11]} 54. Ke2 {[%emt 0:00:56]} Rxg3 {[%emt 0:00:16]} 55. Be6 {[%emt 0:01:32]} Bc7 {[%emt 0:02:44]} 56. Ra6 {[%emt 0:00:46]} Rc3 {[%emt 0:01:05]} 57. Bf7 {[%emt 0:01:53]} g5 {[%emt 0:00:32]} 58. Ra8+ {[%emt 0:02:53]} Ke7 {[%emt 0:00:15]} 59. Bb3 {[%emt 0:00:03]} Bf4 {[%emt 0:00:49]} 60. Rg8 {[%emt 0:00:45]} Re3+ {[%emt 0:00:43]} 61. Kf2 {[%emt 0:00:14]} Rxe4 {[%emt 0:00:28]} 62. Kf3 {[%emt 0:00:08]} Re3+ {[%emt 0:00:52]} 63. Kg4 {[%emt 0:00:10]} Be5 {[%emt 0:01:48]} 64. Rg7+ $19 {[%emt 0:02:05]} Kd6 {[%emt 0:00:12]} 65. Rb7 {[%emt 0:01:10]} c5 {[%emt 0:00:44]} 66. Kf5 {[%emt 0:01:48]} Rf3+ {[%emt 0:00:41]} 67. Ke4 {[%emt 0:00:09]} g4 {[%emt 0:00:45]} 68. Rb6+ {[%emt 0:00:36]} Kc7 {[%emt 0:00:15]} 69. Ra6 {[%emt 0:00:38]} Rf4+ {[%emt 0:00:51]} 70. Kd5 {[%emt 0:00:19]} g3 {[%emt 0:02:06]} 71. Ra7+ {[%emt 0:01:51]} Kb6 {[%emt 0:00:15]} 72. Rg7 {[%emt 0:00:06]} c4 {[%emt 0:01:39]} 73. Bc2 {[%emt 0:05:23]} Rd4+ {[%emt 0:00:12]} 74. Ke6 {[%emt 0:00:05]} Rd2 {[%emt 0:00:46]} 75. Be4 {[%emt 0:00:10]} Rxa2 {[%emt 0:00:56]} 76. Bd5 {[%emt 0:01:13]} Kc5 {[%emt 0:00:10]} 77. Be4 {[%emt 0:00:41]} c3 {[%emt 0:00:29]} 78. Rg8 {[%emt 0:00:58]} Kd4 {[%emt 0:00:28]} 79. Kf5 {[%emt 0:00:29]} Rf2+ {[%emt 0:00:11]} 0-1

[Event "Italian-ch Semifinal 2022"]
[Site "Acqui Terme"]
[Date "2022.06.19"]
[Round "9.9"]
[White "Martorelli, Antonio"]
[Black "Bettalli, Francesco"]
[Result "0-1"]
[ECO "B22"]
[WhiteElo "2141"]
[BlackElo "2304"]
[Annotator "TA"]
[PlyCount "60"]
[EventDate "2022.06.15"]
[EventType "swiss"]
[EventCountry "ITA"]
[SourceTitle "playchess.com"]
[Source "ChessBase"]
[SourceQuality "1"]
[TimeControl "40/5400+30:1800+30"]

{[%evp 19,60,8,0,-28,54,45,25,2,12,-10,10,-33,-19,-24,-20,-46,-4,-20,-11,-6,-13,-8,-15,-32,-16,-23,-27,-29,-46,-56,-52,-57,-55,-48,-69,-63,-58,-533,-527,-564,-573,-557,-552]} 1. e4 {[%emt 0:07:10][%cal Be2e4,Be4e5][%mdl 32]} c5 {[%emt 0:01:06]} 2. Nf3 {[%emt 0:00:19]} Nc6 {[%emt 0:07:40]} 3. c3 {[%emt 0:00:19]} Nf6 {[%emt 0:00:11]} 4. e5 {[%emt 0:00:08]} Nd5 {[%emt 0:00:04]} 5. d4 {[%emt 0:00:11]} cxd4 {[%emt 0:00:06]} 6. Bc4 {[%emt 0:00:25]} Nb6 {[%emt 0:00:49]} 7. Bb3 {[%emt 0:00:12]} d5 {[%emt 0:00:57]} 8. exd6 {[%emt 0:00:21]} Qxd6 {[%emt 0:00:06]} 9. O-O {[%emt 0:00:11]} Be6 {[%emt 0:00:52]} 10. Na3 {[%emt 0:02:30]} a6 {[%emt 0:03:56] 10...Bxb3 is setting a new trend.} 11. Ng5 {[%emt 0:32:19] has lost popularity (11.Bxe6). B22: Sicilian: 2 c3.} Bxb3 {[%emt 0:06:13]} (11... Bd5 $11) 12. Qxb3 $14 {[%emt 0:01:34]} Nd8 {[%emt 0:00:06] [#]} 13. cxd4 $146 {[%emt 0:01:35] Black should prevent Re1. White has an edge.} (13. Rd1 $5 {[%cal Rd1d4]}) ({Predecessor:} 13. Rd1 Qc6 14. Rxd4 e6 15. Nc4 Nxc4 16. Rxc4 Qb5 17. Be3 Nc6 18. Rf4 Qxb3 19. axb3 {0-1 (62) Boricsev,O (2396)-Miladinovic,I (2611) Venice 2004}) 13... e6 {[%emt 0:01:32]} 14. Re1 {[%emt 0:03:20]} Be7 {[%emt 0:02:27]} 15. Ne4 {[%emt 0:03:30]} (15. Bd2 $5 {[%cal Rg5e4]} Bxg5 16. Bxg5 $11) 15... Qb4 {[%emt 0:00:08][%cal Rb4e1] [#]} ({Much less strong is} 15... Qxd4 16. Bf4 Nd5 17. Bd6 $11 (17. Nc2 Qb6 $11)) 16. Qd1 {[%emt 0:01:04]} Rc8 {[%emt 0:02:20]} 17. Re3 {[%emt 0:08:02]} Nd5 {[%emt 0:03:41]} 18. Rg3 {[%emt 0:03:49]} g6 {[%emt 0:00:32]} 19. Bh6 {[%emt 0:07:04][%cal Oe4c5]} f6 {[%emt 0:13:06]} 20. Rb3 {[%emt 0:01:27]} Qa4 {[%emt 0:00:59]} 21. h3 {[%emt 0:08:52]} Rg8 {[%emt 0:02:37] aiming for ...g5.} (21... Nf7 $5 {[%cal Rf7h6]} 22. Rc1 Rxc1 23. Bxc1 O-O $15) 22. Rc1 {[%emt 0:02:33]} Rxc1 {[%emt 0:00:56]} 23. Bxc1 {[%emt 0:00:40]} Nc6 {[%emt 0:01:20]} 24. Qe1 {[%emt 0:06:12] [#] Strongly threatening Nc5.} Nxd4 {[%emt 0:07:06]} 25. Rxb7 {[%emt 0:00:52] And now b3 would win.} Qc6 {[%emt 0:00:04]} 26. Rb8+ {[%emt 0:03:20]} Kf7 {[%emt 0:00:00]} 27. Rxg8 {[%emt 0:00:44]} Kxg8 {[%emt 0:00:01]} 28. Nc3 $2 {[%emt 0:03:24][%mdl 8192]} (28. Bd2 $15) 28... Bxa3 $19 {[%emt 0:02:01] Black is clearly winning.} 29. Nxd5 {[%emt 0:01:42]} exd5 {[%emt 0:00:03]} ({Worse is} 29... Qxd5 30. bxa3 Kg7 31. Be3 $15) 30. Be3 {[%emt 0:00:58]} Nc2 {[%emt 0:01:46] Weighted Error Value: White=0.48/Black=0.11 (very precise)} 0-1

[Event "Italian-ch Semifinal 2022"]
[Site "Acqui Terme"]
[Date "2022.06.19"]
[Round "9.10"]
[White "Miotto, Alberto"]
[Black "Pegno, Mattia"]
[Result "1/2-1/2"]
[ECO "B31"]
[WhiteElo "2039"]
[BlackElo "2065"]
[Annotator "NA RC"]
[PlyCount "116"]
[EventDate "2022.06.15"]
[EventType "swiss"]
[EventCountry "ITA"]
[SourceTitle "playchess.com"]
[Source "ChessBase"]
[SourceQuality "1"]
[TimeControl "40/5400+30:1800+30"]

1. e4 {[%emt 0:00:07]} c5 {[%emt 0:00:10]} 2. Nf3 {[%emt 0:00:08]} Nc6 {[%emt 0:00:08]} 3. Bb5 {[%emt 0:00:05]} g6 {[%emt 0:00:09]} 4. O-O {[%emt 0:00:15]} Bg7 {[%emt 0:00:08]} 5. Re1 {[%emt 0:00:53]} Nf6 {[%emt 0:00:11]} 6. Bxc6 {[%emt 0:00:07]} dxc6 {[%emt 0:01:06]} 7. d3 {[%emt 0:00:08]} Bg4 {[%emt 0:14:01]} 8. Nbd2 {[%emt 0:01:32]} Nd7 {[%emt 0:10:27]} 9. h3 {[%emt 0:01:29]} Bxf3 {[%emt 0:00:28]} 10. Nxf3 {[%emt 0:00:29]} e5 {[%emt 0:02:26]} 11. Be3 {[%emt 0:10:07]} b6 {[%emt 0:04:52]} 12. a3 {[%emt 0:02:27]} a5 {[%emt 0:14:39]} 13. Qd2 {[%emt 0:09:18]} a4 {[%emt 0:27:58]} 14. b4 {[%emt 0:26:06]} cxb4 {[%emt 0:09:12]} 15. Qxb4 {[%emt 0:01:11]} Qe7 {[%emt 0:00:27]} 16. Qc3 {[%emt 0:03:05]} Qd6 {[%emt 0:02:07]} 17. d4 {[%emt 0:13:33]} O-O {[%emt 0:01:06]} 18. Rad1 {[%emt 0:00:42]} Qc7 {[%emt 0:07:36]} 19. d5 {[%emt 0:03:25]} c5 {[%emt 0:00:43]} 20. Qc4 {[%emt 0:01:47]} Rfb8 {[%emt 0:01:41]} 21. Rb1 {[%emt 0:03:41]} Nf6 {[%emt 0:00:26]} 22. Nd2 {[%emt 0:03:13]} Ne8 {[%emt 0:00:50]} 23. Qd3 {[%emt 0:00:45]} Qd7 {[%emt 0:00:29]} 24. Qb5 {[%emt 0:04:53]} Qc7 {[%emt 0:00:37]} 25. Nc4 {[%emt 0:01:48]} Nd6 {[%emt 0:00:30]} 26. Nxd6 {[%emt 0:00:12]} Qxd6 {[%emt 0:00:15]} 27. Rb2 {[%emt 0:02:02]} f5 {[%emt 0:00:25]} 28. f3 {[%emt 0:00:28]} Ra5 {[%emt 0:00:44]} 29. Qc6 {[%emt 0:02:37]} Bf8 {[%emt 0:00:35]} 30. Reb1 {[%emt 0:00:28]} Ra6 {[%emt 0:00:31]} 31. Kf1 {[%emt 0:01:46]} Kf7 {[%emt 0:00:19]} 32. Rb5 {[%emt 0:01:22]} Qxc6 {[%emt 0:00:38]} 33. dxc6 {[%emt 0:00:02]} Bd6 {[%emt 0:00:30]} 34. Bxc5 {[%emt 0:00:37]} Bxc5 {[%emt 0:01:06]} 35. Rxc5 {[%emt 0:00:06]} bxc5 {[%emt 0:00:00]} 36. Rxb8 {[%emt 0:00:02]} Rxc6 {[%emt 0:00:03]} 37. Rb7+ {[%emt 0:00:17]} Kf6 {[%emt 0:00:49]} 38. exf5 {[%emt 0:01:34]} Kxf5 {[%emt 0:00:33]} 39. Rxh7 {[%emt 0:00:42]} Rb6 {[%emt 0:00:31]} 40. Rc7 {[%emt 0:00:00]} Rb1+ {[%emt 0:00:00]} 41. Kf2 {[%emt 0:03:59]} Ra1 {[%emt 0:09:15]} 42. Rc6 {[%emt 0:02:35]} Ra2 $16 {[%emt 0:06:05]} 43. g4+ {[%emt 0:11:42]} Kf4 {[%emt 0:03:16]} 44. Rxc5 {[%emt 0:00:15]} Rxa3 {[%emt 0:01:06]} 45. Rc4+ {[%emt 0:00:05]} Kg5 {[%emt 0:00:11]} 46. Kg3 {[%emt 0:00:47]} Ra1 {[%emt 0:02:29]} 47. Rc6 {[%emt 0:12:50]} Rg1+ {[%emt 0:02:12]} 48. Kf2 {[%emt 0:00:11]} Rc1 {[%emt 0:03:03]} 49. Kg3 {[%emt 0:02:30]} Rg1+ {[%emt 0:00:18]} 50. Kf2 {[%emt 0:00:01]} Rc1 {[%emt 0:00:08]} 51. Ke3 {[%emt 0:01:22]} a3 {[%emt 0:02:48]} 52. Ra6 {[%emt 0:00:11]} Rxc2 {[%emt 0:00:40]} 53. Rxa3 {[%emt 0:00:01]} Rh2 {[%emt 0:01:37]} 54. Ra6 {[%emt 0:00:07]} Rxh3 {[%emt 0:00:55]} 55. Re6 {[%emt 0:00:06]} Rh1 {[%emt 0:01:14]} 56. Rxe5+ {[%emt 0:00:01]} Kf6 {[%emt 0:00:08]} 57. Kf4 {[%emt 0:00:32]} Ra1 {[%emt 0:00:59]} 58. g5+ {[%emt 0:00:27]} Kf7 {[%emt 0:00:22]} 1/2-1/2